[Event "Titled Tuesday Blitz January 10 Late 2023"]
[White "Wang, Alexander J"]
[Black "Lutz, Igor Oscar"]
[WhiteFideId "30955270"]
[BlackFideId "2110806"]
[WhiteElo "1815"]
[BlackElo "1969"]
[Result "0-1"]
[Round "10"]
[TimeControl "180+2"]
[Date "2023.01.10"]
[WhiteClock "0:00:27"]
[BlackClock "0:01:22"]

1. e4 {[%clk 0:00:00]}  c5 {[%clk 0:00:00]} 2. Nf3 {[%clk 0:03:00]}  Nc6 {[%clk 0:02:59]} 3. d4 {[%clk 0:02:59]}  cxd4 {[%clk 0:02:59]} 4. Nxd4 {[%clk 0:02:59]}  Nf6 {[%clk 0:03:00]} 5. Nc3 {[%clk 0:02:59]}  d6 {[%clk 0:02:50]} 6. g3 {[%clk 0:02:55]}  e6 {[%clk 0:02:50]} 7. Bg2 {[%clk 0:02:54]}  Be7 {[%clk 0:02:47]} 8. O-O {[%clk 0:02:51]}  O-O {[%clk 0:02:47]} 9. Be3 {[%clk 0:02:51]}  a6 {[%clk 0:02:40]} 10. h3 {[%clk 0:02:37]}  Qc7 {[%clk 0:02:31]} 11. f4 {[%clk 0:02:12]}  e5 {[%clk 0:02:26]} 12. Nde2 {[%clk 0:02:10]}  exf4 {[%clk 0:02:25]} 13. gxf4 {[%clk 0:02:07]}  b5 {[%clk 0:02:16]} 14. a3 {[%clk 0:02:02]}  Bb7 {[%clk 0:02:10]} 15. Ng3 {[%clk 0:01:50]}  Rfe8 {[%clk 0:02:04]} 16. Nf5 {[%clk 0:01:36]}  Bf8 {[%clk 0:02:02]} 17. Qe1 {[%clk 0:01:35]}  Ne7 {[%clk 0:01:55]} 18. Nxe7+ {[%clk 0:01:24]}  Qxe7 {[%clk 0:01:50]} 19. Bd4 {[%clk 0:01:22]}  Nxe4 {[%clk 0:01:39]} 20. Nxe4 {[%clk 0:00:54]}  Bxe4 {[%clk 0:01:28]} 21. Bxe4 {[%clk 0:00:42]}  Qxe4 {[%clk 0:01:28]} 22. Qxe4 {[%clk 0:00:26]}  Rxe4 {[%clk 0:01:29]} 23. Bc3 {[%clk 0:00:26]}  Rae8 {[%clk 0:01:29]} 24. Kf2 {[%clk 0:00:27]}  Re2+ {[%clk 0:01:22]} 0-1


[Site "https://www.chess.com"]

[Event "Titled Tuesday Blitz January 10 Late 2023"]
[White "Sevian, Samuel"]
[Black "Duda, Jan-Krzysztof"]
[WhiteFideId "2040506"]
[BlackFideId "1170546"]
[WhiteElo "2684"]
[BlackElo "2724"]
[Result "1-0"]
[Round "11"]
[TimeControl "180+2"]
[Date "2023.01.10"]
[WhiteClock "0:00:10"]
[BlackClock "0:00:07"]

1. e4 {[%clk 0:00:00]}  c5 {[%clk 0:00:00]} 2. Nf3 {[%clk 0:03:00]}  d6 {[%clk 0:02:59]} 3. d4 {[%clk 0:02:58]}  cxd4 {[%clk 0:03:00]} 4. Nxd4 {[%clk 0:02:58]}  Nf6 {[%clk 0:03:01]} 5. Nc3 {[%clk 0:02:59]}  a6 {[%clk 0:03:01]} 6. Bg5 {[%clk 0:02:59]}  Nbd7 {[%clk 0:03:01]} 7. Bc4 {[%clk 0:02:58]}  Qb6 {[%clk 0:02:58]} 8. Bb3 {[%clk 0:02:57]}  e6 {[%clk 0:02:50]} 9. Qd2 {[%clk 0:02:55]}  Be7 {[%clk 0:02:49]} 10. O-O-O {[%clk 0:02:54]}  Nc5 {[%clk 0:02:48]} 11. Rhe1 {[%clk 0:02:52]}  h6 {[%clk 0:02:48]} 12. Bh4 {[%clk 0:02:16]}  O-O {[%clk 0:02:42]} 13. g3 {[%clk 0:02:16]}  Qc7 {[%clk 0:02:21]} 14. f4 {[%clk 0:02:16]}  b5 {[%clk 0:02:18]} 15. e5 {[%clk 0:02:14]}  dxe5 {[%clk 0:02:07]} 16. fxe5 {[%clk 0:02:15]}  Ne8 {[%clk 0:02:08]} 17. Bxe7 {[%clk 0:02:15]}  Qxe7 {[%clk 0:02:01]} 18. Ne4 {[%clk 0:01:31]}  Nxe4 {[%clk 0:02:02]} 19. Rxe4 {[%clk 0:01:32]}  Bb7 {[%clk 0:01:47]} 20. Rg4 {[%clk 0:01:30]}  Kh8 {[%clk 0:01:46]} 21. c3 {[%clk 0:01:29]}  Rd8 {[%clk 0:00:59]} 22. Rf1 {[%clk 0:01:23]}  f5 {[%clk 0:00:55]} 23. Rg6 {[%clk 0:00:58]}  Nc7 {[%clk 0:00:33]} 24. h4 {[%clk 0:00:44]}  b4 {[%clk 0:00:33]} 25. Rd1 {[%clk 0:00:45]}  bxc3 {[%clk 0:00:19]} 26. bxc3 {[%clk 0:00:18]}  Be4 {[%clk 0:00:18]} 27. Kb2 {[%clk 0:00:19]}  f4 {[%clk 0:00:17]} 28. Rg4 {[%clk 0:00:18]}  Bf3 {[%clk 0:00:17]} 29. Nxf3 {[%clk 0:00:18]}  Rxd2+ {[%clk 0:00:18]} 30. Rxd2 {[%clk 0:00:06]}  fxg3 {[%clk 0:00:17]} 31. Rxg3 {[%clk 0:00:07]}  Nb5 {[%clk 0:00:17]} 32. Nd4 {[%clk 0:00:08]}  Nxd4 {[%clk 0:00:17]} 33. cxd4 {[%clk 0:00:03]}  Qxh4 {[%clk 0:00:07]} 34. Rgd3 {[%clk 0:00:04]}  Qg4 {[%clk 0:00:06]} 35. d5 {[%clk 0:00:03]}  exd5 {[%clk 0:00:05]} 36. Rxd5 {[%clk 0:00:03]}  h5 {[%clk 0:00:05]} 37. e6 {[%clk 0:00:03]}  Kh7 {[%clk 0:00:04]} 38. e7 {[%clk 0:00:03]}  Re8 {[%clk 0:00:04]} 39. Re5 {[%clk 0:00:02]}  g6 {[%clk 0:00:04]} 40. Rde2 {[%clk 0:00:03]}  Qf4 {[%clk 0:00:03]} 41. R5e4 {[%clk 0:00:02]}  Qf6+ {[%clk 0:00:03]} 42. Kb1 {[%clk 0:00:03]}  Qf5 {[%clk 0:00:02]} 43. Bc2 {[%clk 0:00:03]}  Kh6 {[%clk 0:00:02]} 44. Re6 {[%clk 0:00:02]}  Qg5 {[%clk 0:00:02]} 45. Rxg6+ {[%clk 0:00:02]}  Qxg6 {[%clk 0:00:02]} 46. Bxg6 {[%clk 0:00:02]}  Kxg6 {[%clk 0:00:03]} 47. Kc2 {[%clk 0:00:02]}  h4 {[%clk 0:00:04]} 48. Kd3 {[%clk 0:00:03]}  Kg5 {[%clk 0:00:04]} 49. Kd4 {[%clk 0:00:03]}  h3 {[%clk 0:00:04]} 50. Kd5 {[%clk 0:00:04]}  Kf4 {[%clk 0:00:04]} 51. Kd6 {[%clk 0:00:04]}  Kf3 {[%clk 0:00:04]} 52. Rb2 {[%clk 0:00:04]}  Rh8 {[%clk 0:00:04]} 53. Kd7 {[%clk 0:00:04]}  Kg3 {[%clk 0:00:03]} 54. e8=Q {[%clk 0:00:04]}  Rxe8 {[%clk 0:00:03]} 55. Kxe8 {[%clk 0:00:05]}  h2 {[%clk 0:00:03]} 56. Rb1 {[%clk 0:00:06]}  Kg2 {[%clk 0:00:04]} 57. Kd7 {[%clk 0:00:06]}  a5 {[%clk 0:00:04]} 58. a4 {[%clk 0:00:07]}  h1=Q {[%clk 0:00:04]} 59. Rxh1 {[%clk 0:00:06]}  Kxh1 {[%clk 0:00:04]} 60. Kc6 {[%clk 0:00:06]}  Kg2 {[%clk 0:00:05]} 61. Kb5 {[%clk 0:00:07]}  Kf3 {[%clk 0:00:05]} 62. Kxa5 {[%clk 0:00:08]}  Ke4 {[%clk 0:00:06]} 63. Kb6 {[%clk 0:00:09]}  Kd5 {[%clk 0:00:07]} 64. a5 {[%clk 0:00:10]} 1-0


[Site "https://www.chess.com"]

[Event "Titled Tuesday Blitz January 10 Late 2023"]
[White "Deac, Bogdan-Daniel"]
[Black "Jobava, Baadur"]
[WhiteFideId "1226380"]
[BlackFideId "13601520"]
[WhiteElo "2700"]
[BlackElo "2578"]
[Result "1-0"]
[Round "11"]
[TimeControl "180+2"]
[Date "2023.01.10"]
[WhiteClock "0:00:04"]
[BlackClock "0:00:15"]

1. e4 {[%clk 0:00:00]}  d6 {[%clk 0:00:00]} 2. d4 {[%clk 0:03:00]}  Nf6 {[%clk 0:02:57]} 3. Nc3 {[%clk 0:03:00]}  e5 {[%clk 0:02:58]} 4. Nf3 {[%clk 0:03:01]}  Nbd7 {[%clk 0:02:58]} 5. Rg1 {[%clk 0:03:01]}  g6 {[%clk 0:02:58]} 6. Be3 {[%clk 0:03:01]}  Bg7 {[%clk 0:02:58]} 7. dxe5 {[%clk 0:02:59]}  dxe5 {[%clk 0:02:57]} 8. Qd2 {[%clk 0:02:59]}  c6 {[%clk 0:02:55]} 9. O-O-O {[%clk 0:02:59]}  Qe7 {[%clk 0:02:52]} 10. g4 {[%clk 0:02:57]}  O-O {[%clk 0:02:52]} 11. Qd6 {[%clk 0:02:55]}  Qxd6 {[%clk 0:02:49]} 12. Rxd6 {[%clk 0:02:45]}  Re8 {[%clk 0:02:40]} 13. g5 {[%clk 0:02:46]}  Nh5 {[%clk 0:02:35]} 14. Bh3 {[%clk 0:02:15]}  Nb6 {[%clk 0:02:26]} 15. Bxc8 {[%clk 0:02:15]}  Raxc8 {[%clk 0:02:19]} 16. b3 {[%clk 0:02:14]}  Rcd8 {[%clk 0:02:12]} 17. Rxd8 {[%clk 0:01:39]}  Rxd8 {[%clk 0:02:10]} 18. Rd1 {[%clk 0:01:20]}  Rxd1+ {[%clk 0:02:11]} 19. Kxd1 {[%clk 0:01:20]}  Nc8 {[%clk 0:02:11]} 20. a4 {[%clk 0:01:20]}  Kf8 {[%clk 0:02:05]} 21. a5 {[%clk 0:01:12]}  Ke8 {[%clk 0:02:04]} 22. Na4 {[%clk 0:01:09]}  Nf4 {[%clk 0:01:56]} 23. Nc5 {[%clk 0:00:59]}  b6 {[%clk 0:01:51]} 24. axb6 {[%clk 0:00:43]}  axb6 {[%clk 0:01:48]} 25. Bxf4 {[%clk 0:00:33]}  exf4 {[%clk 0:01:49]} 26. Nd3 {[%clk 0:00:33]}  Nd6 {[%clk 0:01:50]} 27. e5 {[%clk 0:00:33]}  Ne4 {[%clk 0:01:50]} 28. Ke1 {[%clk 0:00:25]}  h6 {[%clk 0:01:50]} 29. h4 {[%clk 0:00:18]}  hxg5 {[%clk 0:01:50]} 30. hxg5 {[%clk 0:00:14]}  Bf8 {[%clk 0:01:50]} 31. Nxf4 {[%clk 0:00:14]}  Be7 {[%clk 0:01:50]} 32. e6 {[%clk 0:00:13]}  Bd6 {[%clk 0:01:49]} 33. exf7+ {[%clk 0:00:07]}  Kxf7 {[%clk 0:01:36]} 34. Nd3 {[%clk 0:00:06]}  Ke6 {[%clk 0:01:37]} 35. Ke2 {[%clk 0:00:06]}  Be7 {[%clk 0:01:34]} 36. Nd4+ {[%clk 0:00:06]}  Kd5 {[%clk 0:01:01]} 37. Ke3 {[%clk 0:00:05]}  Nc3 {[%clk 0:01:01]} 38. Nf4+ {[%clk 0:00:05]}  Kc5 {[%clk 0:00:20]} 39. Nxg6 {[%clk 0:00:05]}  Bxg5+ {[%clk 0:00:20]} 40. Kd3 {[%clk 0:00:04]}  Nd5 {[%clk 0:00:20]} 41. Ne6+ {[%clk 0:00:04]}  Kb4 {[%clk 0:00:21]} 42. Nxg5 {[%clk 0:00:04]}  b5 {[%clk 0:00:21]} 43. Ne5 {[%clk 0:00:05]}  c5 {[%clk 0:00:21]} 44. Ne6 {[%clk 0:00:05]}  Ne7 {[%clk 0:00:20]} 45. f4 {[%clk 0:00:05]}  Nd5 {[%clk 0:00:18]} 46. f5 {[%clk 0:00:05]}  Nf6 {[%clk 0:00:14]} 47. Nc6+ {[%clk 0:00:04]}  Ka3 {[%clk 0:00:15]} 48. Nxc5 {[%clk 0:00:04]}  b4 {[%clk 0:00:16]} 49. Ne4 {[%clk 0:00:04]}  Nd5 {[%clk 0:00:16]} 50. f6 {[%clk 0:00:05]}  Nf4+ {[%clk 0:00:16]} 51. Kd2 {[%clk 0:00:05]}  Ne6 {[%clk 0:00:14]} 52. f7 {[%clk 0:00:05]}  Nf8 {[%clk 0:00:13]} 53. Nd6 {[%clk 0:00:05]}  Ne6 {[%clk 0:00:14]} 54. Nc4+ {[%clk 0:00:05]}  Ka2 {[%clk 0:00:14]} 55. Nxb4+ {[%clk 0:00:05]}  Ka1 {[%clk 0:00:14]} 56. Nd5 {[%clk 0:00:05]}  Kb1 {[%clk 0:00:15]} 57. Ne7 {[%clk 0:00:06]}  Ka1 {[%clk 0:00:14]} 58. Ng6 {[%clk 0:00:05]}  Nd4 {[%clk 0:00:15]} 59. f8=Q {[%clk 0:00:05]}  Nxb3+ {[%clk 0:00:15]} 60. cxb3 {[%clk 0:00:05]}  Kb1 {[%clk 0:00:14]} 61. Qe7 {[%clk 0:00:04]}  Ka2 {[%clk 0:00:15]} 62. Kc2 {[%clk 0:00:04]}  Ka1 {[%clk 0:00:15]} 63. Qa3# {[%clk 0:00:04]} 1-0


[Site "https://www.chess.com"]

[Event "Titled Tuesday Blitz January 10 Late 2023"]
[White "Chigaev, Maksim"]
[Black "Paravyan, David"]
[WhiteFideId "4108116"]
[BlackFideId "4194985"]
[WhiteElo "2628"]
[BlackElo "2601"]
[Result "0-1"]
[Round "11"]
[TimeControl "180+2"]
[Date "2023.01.10"]
[WhiteClock "0:00:07"]
[BlackClock "0:00:07"]

1. e4 {[%clk 0:00:00]}  e5 {[%clk 0:00:00]} 2. Bc4 {[%clk 0:03:00]}  Nf6 {[%clk 0:03:00]} 3. d3 {[%clk 0:03:01]}  c6 {[%clk 0:03:00]} 4. Nf3 {[%clk 0:03:02]}  d5 {[%clk 0:03:00]} 5. Bb3 {[%clk 0:03:02]}  Bd6 {[%clk 0:03:01]} 6. Nc3 {[%clk 0:03:03]}  O-O {[%clk 0:03:01]} 7. Bg5 {[%clk 0:02:59]}  d4 {[%clk 0:03:01]} 8. Ne2 {[%clk 0:02:52]}  a5 {[%clk 0:03:02]} 9. a3 {[%clk 0:02:51]}  a4 {[%clk 0:03:00]} 10. Ba2 {[%clk 0:02:48]}  c5 {[%clk 0:02:58]} 11. h3 {[%clk 0:02:48]}  Nc6 {[%clk 0:02:48]} 12. g4 {[%clk 0:02:47]}  Be6 {[%clk 0:02:47]} 13. Ng3 {[%clk 0:02:44]}  b5 {[%clk 0:02:47]} 14. Nf5 {[%clk 0:02:41]}  Bc7 {[%clk 0:02:02]} 15. h4 {[%clk 0:02:32]}  c4 {[%clk 0:01:46]} 16. h5 {[%clk 0:01:47]}  Ra6 {[%clk 0:00:41]} 17. Kf1 {[%clk 0:01:47]}  Nb8 {[%clk 0:00:36]} 18. Qe2 {[%clk 0:01:44]}  Rc6 {[%clk 0:00:23]} 19. Bh4 {[%clk 0:01:38]}  Nbd7 {[%clk 0:00:19]} 20. Qd2 {[%clk 0:00:55]}  cxd3 {[%clk 0:00:20]} 21. cxd3 {[%clk 0:00:51]}  Bxa2 {[%clk 0:00:11]} 22. Rxa2 {[%clk 0:00:49]}  Kh8 {[%clk 0:00:06]} 23. Ra1 {[%clk 0:00:50]}  Ba5 {[%clk 0:00:02]} 24. Qg5 {[%clk 0:00:45]}  Rg8 {[%clk 0:00:02]} 25. Bg3 {[%clk 0:00:40]}  Qe8 {[%clk 0:00:02]} 26. h6 {[%clk 0:00:30]}  g6 {[%clk 0:00:02]} 27. Ng7 {[%clk 0:00:28]}  Qe7 {[%clk 0:00:02]} 28. Nxe5 {[%clk 0:00:28]}  Rc5 {[%clk 0:00:02]} 29. f4 {[%clk 0:00:26]}  Bd2 {[%clk 0:00:02]} 30. Qh4 {[%clk 0:00:17]}  g5 {[%clk 0:00:02]} 31. Nf5 {[%clk 0:00:15]}  Qe6 {[%clk 0:00:02]} 32. Qh2 {[%clk 0:00:14]}  gxf4 {[%clk 0:00:02]} 33. Nxd7 {[%clk 0:00:06]}  Nxd7 {[%clk 0:00:02]} 34. Bxf4 {[%clk 0:00:06]}  Be3 {[%clk 0:00:02]} 35. Nxe3 {[%clk 0:00:06]}  dxe3 {[%clk 0:00:01]} 36. Bxe3 {[%clk 0:00:04]}  Rc6 {[%clk 0:00:02]} 37. Bd4+ {[%clk 0:00:05]}  f6 {[%clk 0:00:03]} 38. Rg1 {[%clk 0:00:06]}  Rd6 {[%clk 0:00:04]} 39. Bc3 {[%clk 0:00:04]}  Rxd3 {[%clk 0:00:04]} 40. Qf4 {[%clk 0:00:04]}  Rg6 {[%clk 0:00:04]} 41. Qf5 {[%clk 0:00:05]}  Qc4 {[%clk 0:00:02]} 42. Kf2 {[%clk 0:00:04]}  Kg8 {[%clk 0:00:02]} 43. Rad1 {[%clk 0:00:03]}  Qc5+ {[%clk 0:00:02]} 44. Qxc5 {[%clk 0:00:03]}  Nxc5 {[%clk 0:00:02]} 45. Rxd3 {[%clk 0:00:03]}  Nxd3+ {[%clk 0:00:03]} 46. Ke3 {[%clk 0:00:03]}  Nc5 {[%clk 0:00:04]} 47. Kf4 {[%clk 0:00:04]}  Kf7 {[%clk 0:00:04]} 48. e5 {[%clk 0:00:03]}  fxe5+ {[%clk 0:00:04]} 49. Bxe5 {[%clk 0:00:03]}  Rxh6 {[%clk 0:00:04]} 50. Rd1 {[%clk 0:00:03]}  Ke7 {[%clk 0:00:04]} 51. Kf5 {[%clk 0:00:03]}  Nd7 {[%clk 0:00:03]} 52. g5 {[%clk 0:00:03]}  Rh3 {[%clk 0:00:01]} 53. Bf6+ {[%clk 0:00:03]}  Ke8 {[%clk 0:00:02]} 54. Re1+ {[%clk 0:00:03]}  Kf8 {[%clk 0:00:02]} 55. Rd1 {[%clk 0:00:03]}  Ke8 {[%clk 0:00:02]} 56. Rd5 {[%clk 0:00:02]}  Rf3+ {[%clk 0:00:02]} 57. Ke6 {[%clk 0:00:02]}  Re3+ {[%clk 0:00:02]} 58. Kd6 {[%clk 0:00:02]}  Rb3 {[%clk 0:00:02]} 59. Kc6 {[%clk 0:00:02]}  Nxf6 {[%clk 0:00:02]} 60. gxf6 {[%clk 0:00:02]}  Kf7 {[%clk 0:00:02]} 61. Rxb5 {[%clk 0:00:03]}  Rxb5 {[%clk 0:00:03]} 62. Kxb5 {[%clk 0:00:03]}  h5 {[%clk 0:00:03]} 63. Kxa4 {[%clk 0:00:04]}  h4 {[%clk 0:00:03]} 64. b4 {[%clk 0:00:04]}  h3 {[%clk 0:00:04]} 65. b5 {[%clk 0:00:05]}  h2 {[%clk 0:00:05]} 66. b6 {[%clk 0:00:06]}  h1=Q {[%clk 0:00:06]} 67. b7 {[%clk 0:00:07]}  Qxb7 {[%clk 0:00:07]} 0-1


[Site "https://www.chess.com"]

[Event "Titled Tuesday Blitz January 10 Late 2023"]
[White "Caruana, Fabiano"]
[Black "Rustemov, Alexander"]
[WhiteFideId "2020009"]
[BlackFideId "4119002"]
[WhiteElo "2764"]
[BlackElo "2525"]
[Result "1-0"]
[Round "11"]
[TimeControl "180+2"]
[Date "2023.01.10"]
[WhiteClock "0:00:25"]
[BlackClock "0:00:02"]

1. d4 {[%clk 0:00:00]}  d5 {[%clk 0:00:00]} 2. c4 {[%clk 0:03:00]}  c6 {[%clk 0:02:59]} 3. Nf3 {[%clk 0:03:00]}  Nf6 {[%clk 0:02:59]} 4. Nc3 {[%clk 0:03:01]}  a6 {[%clk 0:03:00]} 5. e3 {[%clk 0:03:01]}  Bf5 {[%clk 0:02:59]} 6. Nh4 {[%clk 0:03:00]}  Bg6 {[%clk 0:02:58]} 7. Nxg6 {[%clk 0:02:58]}  hxg6 {[%clk 0:02:57]} 8. Bd3 {[%clk 0:02:57]}  e6 {[%clk 0:02:56]} 9. O-O {[%clk 0:02:57]}  Nbd7 {[%clk 0:02:56]} 10. h3 {[%clk 0:02:57]}  Be7 {[%clk 0:02:44]} 11. b3 {[%clk 0:02:56]}  O-O {[%clk 0:02:42]} 12. Bb2 {[%clk 0:02:55]}  Bd6 {[%clk 0:02:41]} 13. Qe2 {[%clk 0:02:54]}  Qe7 {[%clk 0:02:36]} 14. Rad1 {[%clk 0:02:52]}  Rfe8 {[%clk 0:02:35]} 15. g3 {[%clk 0:02:52]}  Rad8 {[%clk 0:02:33]} 16. Kg2 {[%clk 0:02:51]}  e5 {[%clk 0:02:32]} 17. cxd5 {[%clk 0:02:51]}  cxd5 {[%clk 0:02:27]} 18. dxe5 {[%clk 0:02:44]}  Nxe5 {[%clk 0:02:26]} 19. Bb1 {[%clk 0:02:42]}  Ba3 {[%clk 0:02:21]} 20. Bxa3 {[%clk 0:02:41]}  Qxa3 {[%clk 0:02:07]} 21. Qd2 {[%clk 0:02:37]}  Nc6 {[%clk 0:02:07]} 22. Ne2 {[%clk 0:02:33]}  Ne4 {[%clk 0:02:04]} 23. Qc1 {[%clk 0:02:30]}  Qxc1 {[%clk 0:01:59]} 24. Rxc1 {[%clk 0:02:28]}  d4 {[%clk 0:01:56]} 25. Nxd4 {[%clk 0:02:28]}  Nxd4 {[%clk 0:01:56]} 26. exd4 {[%clk 0:02:25]}  Rxd4 {[%clk 0:01:56]} 27. Rfe1 {[%clk 0:02:26]}  Kf8 {[%clk 0:01:38]} 28. h4 {[%clk 0:02:25]}  Nd6 {[%clk 0:01:30]} 29. Red1 {[%clk 0:01:48]}  Rxd1 {[%clk 0:01:23]} 30. Rxd1 {[%clk 0:01:48]}  Ke7 {[%clk 0:01:23]} 31. Bd3 {[%clk 0:01:48]}  Rc8 {[%clk 0:01:22]} 32. g4 {[%clk 0:01:46]}  a5 {[%clk 0:01:19]} 33. Kf3 {[%clk 0:01:37]}  Rc5 {[%clk 0:01:19]} 34. Ke3 {[%clk 0:01:32]}  g5 {[%clk 0:01:18]} 35. h5 {[%clk 0:01:30]}  b6 {[%clk 0:01:13]} 36. f4 {[%clk 0:01:17]}  f6 {[%clk 0:01:03]} 37. Re1 {[%clk 0:01:16]}  Kd7 {[%clk 0:01:02]} 38. fxg5 {[%clk 0:01:09]}  Rxg5 {[%clk 0:00:57]} 39. Kf4 {[%clk 0:01:07]}  Rd5 {[%clk 0:00:56]} 40. Re3 {[%clk 0:01:07]}  Rd4+ {[%clk 0:00:56]} 41. Kg3 {[%clk 0:01:04]}  Nf7 {[%clk 0:00:56]} 42. Bf5+ {[%clk 0:01:03]}  Kd8 {[%clk 0:00:50]} 43. Rc3 {[%clk 0:01:02]}  Nd6 {[%clk 0:00:50]} 44. Bg6 {[%clk 0:00:58]}  Kd7 {[%clk 0:00:48]} 45. Re3 {[%clk 0:00:50]}  b5 {[%clk 0:00:48]} 46. Re2 {[%clk 0:00:50]}  b4 {[%clk 0:00:47]} 47. Rc2 {[%clk 0:00:45]}  Rd1 {[%clk 0:00:47]} 48. Rc5 {[%clk 0:00:43]}  Rg1+ {[%clk 0:00:41]} 49. Kf3 {[%clk 0:00:41]}  Rf1+ {[%clk 0:00:38]} 50. Kg2 {[%clk 0:00:39]}  Re1 {[%clk 0:00:37]} 51. Rxa5 {[%clk 0:00:38]}  Kc6 {[%clk 0:00:17]} 52. Ra7 {[%clk 0:00:38]}  Nb7 {[%clk 0:00:09]} 53. Kf3 {[%clk 0:00:37]}  Kb6 {[%clk 0:00:02]} 54. Ra4 {[%clk 0:00:34]}  Re7 {[%clk 0:00:03]} 55. Rxb4+ {[%clk 0:00:31]}  Kc5 {[%clk 0:00:03]} 56. Rc4+ {[%clk 0:00:31]}  Kd6 {[%clk 0:00:03]} 57. Rd4+ {[%clk 0:00:30]}  Kc5 {[%clk 0:00:03]} 58. Re4 {[%clk 0:00:30]}  Rd7 {[%clk 0:00:03]} 59. b4+ {[%clk 0:00:29]}  Kb6 {[%clk 0:00:02]} 60. a4 {[%clk 0:00:29]}  Nd6 {[%clk 0:00:02]} 61. Rd4 {[%clk 0:00:29]}  Kc7 {[%clk 0:00:02]} 62. b5 {[%clk 0:00:29]}  Re7 {[%clk 0:00:02]} 63. b6+ {[%clk 0:00:29]}  Kc6 {[%clk 0:00:02]} 64. a5 {[%clk 0:00:28]}  Re5 {[%clk 0:00:02]} 65. Ra4 {[%clk 0:00:29]}  Kb7 {[%clk 0:00:02]} 66. a6+ {[%clk 0:00:25]} 1-0


[Site "https://www.chess.com"]

[Event "Titled Tuesday Blitz January 10 Late 2023"]
[White "Ivic, Velimir"]
[Black "Sarana, Alexey"]
[WhiteFideId "950122"]
[BlackFideId "24133795"]
[WhiteElo "2595"]
[BlackElo "2685"]
[Result "0-1"]
[Round "11"]
[TimeControl "180+2"]
[Date "2023.01.10"]
[WhiteClock "0:00:02"]
[BlackClock "0:00:58"]

1. d4 {[%clk 0:00:00]}  d5 {[%clk 0:00:00]} 2. c4 {[%clk 0:03:00]}  e6 {[%clk 0:02:58]} 3. Nc3 {[%clk 0:03:01]}  Nf6 {[%clk 0:02:59]} 4. cxd5 {[%clk 0:03:01]}  Nxd5 {[%clk 0:02:59]} 5. e4 {[%clk 0:03:01]}  Nxc3 {[%clk 0:02:59]} 6. bxc3 {[%clk 0:03:01]}  c5 {[%clk 0:02:59]} 7. Nf3 {[%clk 0:03:02]}  cxd4 {[%clk 0:03:00]} 8. cxd4 {[%clk 0:03:03]}  Bb4+ {[%clk 0:02:59]} 9. Bd2 {[%clk 0:03:03]}  Bxd2+ {[%clk 0:02:59]} 10. Qxd2 {[%clk 0:03:04]}  O-O {[%clk 0:03:00]} 11. Bc4 {[%clk 0:03:05]}  Nd7 {[%clk 0:03:00]} 12. O-O {[%clk 0:03:05]}  b6 {[%clk 0:02:57]} 13. d5 {[%clk 0:03:01]}  Nc5 {[%clk 0:02:57]} 14. Rfe1 {[%clk 0:03:02]}  exd5 {[%clk 0:02:49]} 15. exd5 {[%clk 0:03:00]}  Qf6 {[%clk 0:02:47]} 16. Ne5 {[%clk 0:03:01]}  Bf5 {[%clk 0:02:47]} 17. Qf4 {[%clk 0:02:44]}  Rad8 {[%clk 0:02:43]} 18. Nc6 {[%clk 0:02:31]}  Rd7 {[%clk 0:02:28]} 19. Rad1 {[%clk 0:02:12]}  Bc2 {[%clk 0:02:27]} 20. Qxf6 {[%clk 0:02:08]}  gxf6 {[%clk 0:01:41]} 21. Rd2 {[%clk 0:02:02]}  Ba4 {[%clk 0:01:42]} 22. Nd4 {[%clk 0:02:01]}  Rfd8 {[%clk 0:01:41]} 23. a3 {[%clk 0:01:57]}  Nb7 {[%clk 0:01:37]} 24. Ba2 {[%clk 0:01:45]}  Nd6 {[%clk 0:01:31]} 25. Nc6 {[%clk 0:01:35]}  Rc8 {[%clk 0:01:30]} 26. Rc1 {[%clk 0:01:14]}  Kf8 {[%clk 0:01:25]} 27. f3 {[%clk 0:00:44]}  Nf5 {[%clk 0:01:24]} 28. Re2 {[%clk 0:00:37]}  Ne7 {[%clk 0:01:22]} 29. Re4 {[%clk 0:00:28]}  Bxc6 {[%clk 0:01:20]} 30. dxc6 {[%clk 0:00:22]}  Rxc6 {[%clk 0:01:16]} 31. Rxc6 {[%clk 0:00:23]}  Nxc6 {[%clk 0:01:15]} 32. h4 {[%clk 0:00:14]}  Rd1+ {[%clk 0:01:16]} 33. Kh2 {[%clk 0:00:11]}  Rd2 {[%clk 0:01:16]} 34. Bc4 {[%clk 0:00:11]}  Ne5 {[%clk 0:01:17]} 35. Be2 {[%clk 0:00:08]}  Ra2 {[%clk 0:01:17]} 36. f4 {[%clk 0:00:09]}  Nd7 {[%clk 0:01:16]} 37. Re3 {[%clk 0:00:07]}  Nc5 {[%clk 0:01:07]} 38. Kh3 {[%clk 0:00:07]}  Rb2 {[%clk 0:01:06]} 39. Bc4 {[%clk 0:00:06]}  Rc2 {[%clk 0:01:01]} 40. Bd5 {[%clk 0:00:05]}  Rd2 {[%clk 0:01:01]} 41. Bc4 {[%clk 0:00:04]}  Rd4 {[%clk 0:01:01]} 42. Be2 {[%clk 0:00:05]}  Rxf4 {[%clk 0:01:00]} 43. Bf3 {[%clk 0:00:03]}  Rd4 {[%clk 0:00:58]} 44. g4 {[%clk 0:00:02]} 0-1


[Site "https://www.chess.com"]

[Event "Titled Tuesday Blitz January 10 Late 2023"]
[White "Mosadeghpour, Masoud"]
[Black "Borges Feria, Yasel"]
[WhiteFideId "12519278"]
[BlackFideId "3504921"]
[WhiteElo "2472"]
[BlackElo "2439"]
[Result "1-0"]
[Round "11"]
[TimeControl "180+2"]
[Date "2023.01.10"]
[WhiteClock "0:00:49"]
[BlackClock "0:00:10"]

1. e4 {[%clk 0:00:00]}  e5 {[%clk 0:00:00]} 2. Nf3 {[%clk 0:03:00]}  Nc6 {[%clk 0:02:58]} 3. Nc3 {[%clk 0:03:00]}  Nf6 {[%clk 0:02:55]} 4. g3 {[%clk 0:02:59]}  d5 {[%clk 0:02:54]} 5. exd5 {[%clk 0:03:00]}  Nxd5 {[%clk 0:02:52]} 6. Bg2 {[%clk 0:03:00]}  Nxc3 {[%clk 0:02:50]} 7. bxc3 {[%clk 0:03:01]}  Bd6 {[%clk 0:02:49]} 8. O-O {[%clk 0:03:02]}  O-O {[%clk 0:02:48]} 9. Re1 {[%clk 0:03:02]}  Re8 {[%clk 0:02:46]} 10. Rb1 {[%clk 0:03:02]}  Rb8 {[%clk 0:02:43]} 11. d3 {[%clk 0:03:02]}  Bd7 {[%clk 0:02:36]} 12. h3 {[%clk 0:02:57]}  b6 {[%clk 0:02:30]} 13. Ng5 {[%clk 0:02:56]}  h6 {[%clk 0:02:23]} 14. Nxf7 {[%clk 0:02:54]}  Kxf7 {[%clk 0:02:15]} 15. Bd5+ {[%clk 0:02:50]}  Ke7 {[%clk 0:02:03]} 16. Qh5 {[%clk 0:02:50]}  Rf8 {[%clk 0:01:55]} 17. Qg6 {[%clk 0:02:45]}  Qe8 {[%clk 0:01:49]} 18. Qxg7+ {[%clk 0:02:35]}  Kd8 {[%clk 0:01:45]} 19. Bxh6 {[%clk 0:02:33]}  Ne7 {[%clk 0:01:42]} 20. Qxf8 {[%clk 0:02:25]}  Qxf8 {[%clk 0:01:37]} 21. Bxf8 {[%clk 0:02:12]}  Nxd5 {[%clk 0:01:37]} 22. Bg7 {[%clk 0:02:13]}  Nxc3 {[%clk 0:01:36]} 23. Rb3 {[%clk 0:02:12]}  Nxa2 {[%clk 0:01:33]} 24. Bxe5 {[%clk 0:02:12]}  a5 {[%clk 0:01:31]} 25. Bxd6 {[%clk 0:02:09]}  cxd6 {[%clk 0:01:26]} 26. c3 {[%clk 0:02:05]}  Rc8 {[%clk 0:01:27]} 27. Rxb6 {[%clk 0:02:03]}  Nxc3 {[%clk 0:01:18]} 28. h4 {[%clk 0:02:00]}  a4 {[%clk 0:01:16]} 29. h5 {[%clk 0:01:52]}  Kc7 {[%clk 0:01:10]} 30. Rb4 {[%clk 0:01:51]}  d5 {[%clk 0:01:07]} 31. h6 {[%clk 0:01:50]}  Kd6 {[%clk 0:01:04]} 32. d4 {[%clk 0:01:45]}  Bb5 {[%clk 0:01:01]} 33. Kg2 {[%clk 0:01:36]}  Bd3 {[%clk 0:00:50]} 34. Re3 {[%clk 0:01:33]}  Be4+ {[%clk 0:00:47]} 35. f3 {[%clk 0:01:31]}  Nd1 {[%clk 0:00:44]} 36. Re2 {[%clk 0:01:31]}  Nc3 {[%clk 0:00:41]} 37. Re1 {[%clk 0:01:27]}  Bc2 {[%clk 0:00:36]} 38. Rb6+ {[%clk 0:01:22]}  Kd7 {[%clk 0:00:33]} 39. g4 {[%clk 0:01:16]}  a3 {[%clk 0:00:32]} 40. g5 {[%clk 0:00:55]}  a2 {[%clk 0:00:29]} 41. g6 {[%clk 0:00:55]}  Nb1 {[%clk 0:00:26]} 42. Ra6 {[%clk 0:00:55]}  Bxg6 {[%clk 0:00:22]} 43. Rxa2 {[%clk 0:00:54]}  Nc3 {[%clk 0:00:21]} 44. Ra7+ {[%clk 0:00:52]}  Kd6 {[%clk 0:00:21]} 45. Ra6+ {[%clk 0:00:50]}  Rc6 {[%clk 0:00:18]} 46. Rxc6+ {[%clk 0:00:50]}  Kxc6 {[%clk 0:00:10]} 47. Re6+ {[%clk 0:00:49]} 1-0


[Site "https://www.chess.com"]